fUSD/lending_fUSD_20250109
["ID","MTS","AMOUNT","RATE_DAILY","PERIOD"]
[348210604,1736392250496,-1072.11,0.00010719,2]
[348210605,1736392250506,-972.24,0.00010719,2]
[348210606,1736392250515,-612.74,0.00010719,2]
[348210607,1736392250524,-500.0,0.00010719,2]
[348210608,1736392250533,-860.95,0.00010719,2]
[348210609,1736392250543,-500.0,0.00010719,2]
[348210610,1736392250554,-500.0,0.00010719,2]
[348210611,1736392250564,-500.0,0.00010719,2]
[348210612,1736392250574,-500.0,0.00010719,2]
[348210613,1736392250585,-847.55,0.00010719,2]
[348210614,1736392250595,-1382.5,0.00010719,2]
[348210615,1736392250604,-1861.34,0.00010719,2]
[348210616,1736392250613,-500.0,0.00010719,2]
[348210617,1736392250623,-757.64,0.00010719,2]
[348210618,1736392250632,-500.0,0.00010719,2]
[348210619,1736392250642,-1188.41,0.00010719,2]
[348210620,1736392250651,-500.0,0.00010719,2]
[348210621,1736392250661,-856.29,0.00010719,2]
[348210622,1736392250670,-506.63690694,0.00010719,2]
[348210623,1736392250679,-500.0,0.00010719,2]
[348210624,1736392250689,-2771.17,0.00010719,2]
[348210625,1736392250699,-500.0,0.00010719,2]
[348210626,1736392250708,-561.55,0.00010719,2]
[348210627,1736392250717,-500.0,0.00010719,2]
[348210628,1736392250727,-407.27975472,0.00010719,2]
[348210629,1736392250736,-500.0,0.0001072,2]
[348210630,1736392250746,-500.0,0.0001072,2]
[348210631,1736392250756,-242.21213412,0.0001072,2]
[348210632,1736392250766,-500.0,0.0001072,2]
[348210633,1736392250775,-500.0,0.0001072,2]
[348210634,1736392250785,-500.0,0.0001072,2]
[348210635,1736392250794,-500.0,0.0001072,2]
[348210636,1736392250804,-500.0,0.0001072,2]
[348210637,1736392250813,-500.0,0.0001072,2]
[348210638,1736392250823,-500.0,0.0001072,2]
[348210639,1736392250833,-500.0,0.0001072,2]
[348210640,1736392250843,-500.0,0.0001072,2]
[348210641,1736392250853,-500.0,0.0001072,2]
[348210642,1736392250861,-500.0,0.0001072,2]
[348210643,1736392250871,-500.0,0.0001072,2]
[348210644,1736392250881,-333.72012617,0.0001072,2]
[348210645,1736392250891,-500.0,0.0001072,2]
[348210646,1736392250900,-500.0,0.0001072,2]
[348210647,1736392250910,-533.94646245,0.0001072,2]
[348210648,1736392250920,-500.0,0.0001072,2]
[348210649,1736392250929,-507.00241384,0.0001072,2]
[348210650,1736392250939,-510.41725396,0.0001072,2]
[348210651,1736392250948,-500.0,0.0001072,2]
[348210652,1736392250958,-540.34,0.0001072,2]
[348210653,1736392250967,-567.64106834,0.0001072,2]
[348210654,1736392250977,-616.85890222,0.0001072,2]
[348210655,1736392250986,-500.0,0.0001072,2]
[348210656,1736392250995,-500.0,0.0001072,2]
[348210657,1736392251006,-500.0,0.0001072,2]
[348210658,1736392251016,-500.0,0.0001072,2]
[348210659,1736392251026,-500.0,0.0001072,2]
[348210660,1736392251036,-500.0,0.0001072,2]
[348210661,1736392251046,-500.0,0.0001072,2]
[348210662,1736392251055,-500.0,0.0001072,2]
[348210663,1736392251065,-500.0,0.0001072,2]
[348210664,1736392251077,-502.93,0.0001072,2]
[348210665,1736392251087,-500.0,0.0001072,2]
[348210666,1736392251097,-500.0,0.0001072,2]
[348210667,1736392251106,-500.0,0.0001072,2]
[348210668,1736392251115,-500.0,0.0001072,2]
[348210669,1736392251125,-500.0,0.0001072,2]
[348210670,1736392251134,-500.0,0.0001072,2]
[348210671,1736392251144,-500.0,0.0001072,2]
[348210672,1736392251153,-500.0,0.0001072,2]
[348210673,1736392251163,-500.0,0.0001072,2]
[348210674,1736392251173,-500.0,0.0001072,2]
[348210675,1736392251182,-500.0,0.0001072,2]
[348210676,1736392251192,-500.0,0.0001072,2]
[348210677,1736392251202,-175.30572091,0.0001072,2]
[348210678,1736392251211,-500.0,0.0001072,2]
[348210679,1736392251220,-500.0,0.0001072,2]
[348210680,1736392251230,-500.0,0.0001072,2]
[348210681,1736392251239,-554.56,0.0001072,2]
[348210682,1736392251249,-500.0,0.0001072,2]
[348210683,1736392251259,-500.0,0.0001072,2]
[348210684,1736392251270,-500.0,0.0001072,2]
[348210685,1736392251280,-508.15645446,0.0001072,2]
[348210686,1736392251289,-500.0,0.0001072,2]
[348210687,1736392251299,-500.0,0.0001072,2]
[348210688,1736392251309,-500.0,0.0001072,2]
[348210689,1736392251319,-500.0,0.0001072,2]
[348210690,1736392251328,-500.0,0.0001072,2]
[348210691,1736392251341,-500.0,0.0001072,2]
[348210692,1736392251351,-500.0,0.0001072,2]
[348210693,1736392251361,-500.0,0.0001072,2]
[348210694,1736392251370,-245.73271136,0.0001072,2]
[348210695,1736392251380,-150.91,0.0001072,2]
[348210696,1736392251389,-500.0,0.0001072,2]
[348210697,1736392251399,-500.0,0.0001072,2]
[348210698,1736392251409,-500.0,0.0001072,2]
[348210699,1736392251418,-500.0,0.0001072,2]
[348210700,1736392251428,-445.38244959,0.0001072,2]
[348210701,1736392251438,-339.90894611,0.0001072,2]
[348210702,1736392251447,-500.0,0.0001072,2]
[348210703,1736392251457,-240.24126291,0.0001072,2]
[348210704,1736392251467,-642.1337613,0.0001072,2]
[348210705,1736392251477,-512.82584878,0.0001072,2]
[348210706,1736392251487,-500.0,0.0001072,2]
[348210707,1736392251498,-500.0,0.0001072,2]
[348210708,1736392251508,-500.0,0.0001072,2]
[348210709,1736392251518,-500.0,0.0001072,2]
[348210710,1736392251529,-500.0,0.0001072,2]
[348210711,1736392251538,-500.0,0.0001072,2]
[348210712,1736392251547,-500.0,0.0001072,2]
[348210713,1736392251557,-500.0,0.00010721,2]
[348210714,1736392251566,-501.00368228,0.00010721,2]
[348210715,1736392251576,-500.0,0.00010721,2]
[348210716,1736392251587,-461.23733526,0.00010721,2]
[348210717,1736392251597,-500.0,0.00010721,2]
[348210718,1736392251606,-500.0,0.00010721,2]
[348210719,1736392251616,-500.0,0.00010721,2]
[348210720,1736392251626,-500.0,0.00010721,2]
[348210721,1736392251636,-569.10714978,0.00010721,2]
[348210722,1736392251646,-631.40660963,0.00010728,2]
[348210723,1736392251656,-175.9175134,0.00010749,2]
[348210724,1736392251666,-500.0,0.00010819,2]
[348210725,1736392251676,-185.16,0.00010819,2]
[348210726,1736392251686,-853.95,0.00010819,2]
[348210727,1736392251695,-1465.5,0.00010819,2]
[348210728,1736392251705,-817.85,0.00010819,2]
[348210729,1736392251715,-500.0,0.00010819,2]
[348210730,1736392251725,-500.0,0.00010819,2]
[348210731,1736392251735,-684.72,0.00010819,2]
[348210732,1736392251745,-807.44,0.00010819,2]
[348210733,1736392251755,-631.1,0.00010819,2]
[348210734,1736392251766,-705.09,0.00010819,2]
[348210735,1736392251777,-1011.08,0.00010819,2]
[348210736,1736392251788,-950.4,0.00010819,2]
[348210737,1736392251799,-1464.93,0.00010819,2]
[348210738,1736392251808,-500.0,0.00010819,2]
[348210739,1736392251818,-500.0,0.00010819,2]
[348210740,1736392251828,-526.31,0.00010819,2]
[348210741,1736392251839,-673.63,0.00010819,2]
[348210742,1736392251849,-500.0,0.00010819,2]
[348210743,1736392251859,-706.04,0.0001082,2]
[348210744,1736392251869,-909.19,0.0001082,2]
[348210745,1736392251878,-804.77,0.0001082,2]
[348210746,1736392251888,-500.0,0.0001082,2]
[348210747,1736392251898,-1296.61,0.0001082,2]
[348210748,1736392251907,-935.19,0.0001082,2]
[348210749,1736392251917,-2124.62,0.0001082,2]
[348210750,1736392251927,-500.0,0.0001082,2]
[348210751,1736392251937,-500.0,0.0001082,2]
[348210752,1736392251946,-500.0,0.00010821,2]
[348210753,1736392251956,-1150.38,0.00010821,2]
[348210754,1736392251967,-500.0,0.00010821,2]
[348210755,1736392251976,-514.41,0.00010821,2]
[348210756,1736392251986,-500.0,0.00010821,2]
[348210757,1736392251996,-500.0,0.00010821,2]
[348210758,1736392252006,-500.0,0.00010821,2]
[348210759,1736392252015,-994.18,0.00010821,2]
[348210760,1736392252025,-911.09,0.00010821,2]
[348210761,1736392252035,-500.0,0.00010821,2]
[348210762,1736392252045,-551.16,0.00010821,2]
[348210763,1736392252055,-500.0,0.00010821,2]
[348210764,1736392252064,-500.0,0.00010821,2]
[348210765,1736392252074,-811.36,0.00010821,2]
[348210766,1736392252087,-821.04,0.00010821,2]
[348210767,1736392252096,-2206.47,0.00010821,2]
[348210768,1736392252107,-631.40660963,0.00010831,2]
[348210769,1736392252116,-500.0,0.00010867,2]
[348210770,1736392252127,-660.06,0.00010867,2]
[348210771,1736392252137,-484.41,0.00010868,2]
[348210772,1736392252146,-150.0,0.000109,2]
[348210773,1736392252156,-2019.264,0.0001092,2]
[348210774,1736392252166,-1267.0,0.0001092,2]
[348210775,1736392252175,-150.0,0.0001092,2]
[348210776,1736392252186,-634.0,0.0001092,2]
[348210777,1736392252196,-566.0,0.0001092,2]
[348210778,1736392252206,-1860.0,0.0001092,2]
[348210779,1736392252216,-918.0,0.0001092,2]
[348210780,1736392252226,-3776.0,0.0001092,2]
[348210781,1736392252235,-1258.0,0.0001092,2]
[348210782,1736392252245,-819.0,0.0001092,2]
[348210783,1736392252255,-3976.0,0.0001092,2]
[348210784,1736392252269,-537.0,0.0001092,2]
[348210785,1736392252279,-631.40660963,0.00010934,2]
[348210786,1736392252288,-4479.29412448,0.00010958,2]
[348210787,1736392252298,-999.0,0.00010958,2]
[348210788,1736392252308,-150.0,0.00010959,2]
[348210789,1736392252318,-150.0,0.0001096,2]
[348210790,1736392252328,-500.0,0.00010986,2]
[348210791,1736392252341,-500.0,0.00010993,2]
[348210792,1736392252350,-500.0,0.00010993,2]
[348210793,1736392252359,-220.44305203,0.00010993,2]
[348210794,1736392252369,-591.72,0.00010993,2]
[348210795,1736392252379,-500.0,0.00010993,2]
[348210796,1736392252389,-500.0,0.00010993,2]
[348210797,1736392252398,-500.0,0.00010993,2]
[348210798,1736392252407,-500.0,0.00010993,2]
[348210799,1736392252417,-1567.47,0.00010993,2]
[348210800,1736392252427,-962.47,0.00010993,2]
[348210801,1736392252436,-500.0,0.00010993,2]
[348210802,1736392252446,-254.616793,0.00010993,2]
[348210803,1736392252456,-1699.35,0.00010993,2]
[348210804,1736392252465,-559.52,0.00010993,2]
[348210805,1736392252476,-500.0,0.00010993,2]
[348210806,1736392252486,-820.12,0.00010993,2]
[348210807,1736392252495,-1092.02,0.00010993,2]
[348210808,1736392252505,-538.11,0.00010993,2]
[348210809,1736392252514,-1072.11,0.00010993,2]
[348210810,1736392252524,-972.24,0.00010993,2]
[348210811,1736392252534,-612.74,0.00010993,2]
[348210812,1736392252543,-500.0,0.00010993,2]
[348210813,1736392252553,-860.95,0.00010993,2]
[348210814,1736392252563,-500.0,0.00010993,2]
[348210815,1736392252572,-500.0,0.00010993,2]
[348210816,1736392252582,-500.0,0.00010993,2]
[348210817,1736392252593,-500.0,0.00010993,2]
[348210818,1736392252603,-847.55,0.00010993,2]
[348210819,1736392252613,-1382.5,0.00010993,2]
[348210820,1736392252623,-1861.34,0.00010993,2]
[348210821,1736392252632,-500.0,0.00010993,2]
[348210822,1736392252644,-757.64,0.00010993,2]
[348210823,1736392252654,-500.0,0.00010993,2]
[348210824,1736392252664,-1188.41,0.00010993,2]
[348210825,1736392252673,-500.0,0.00010993,2]
[348210826,1736392252683,-856.29,0.00010993,2]
[348210827,1736392252692,-500.0,0.00010993,2]
[348210828,1736392252702,-2771.17,0.00010993,2]
[348210829,1736392252713,-500.0,0.00010993,2]
[348210830,1736392252723,-561.55,0.00010993,2]
[348210831,1736392252733,-418.35302688,0.00010993,2]
[348210832,1736392252742,-276.86238453,0.00010994,2]
[348210833,1736392252753,-500.0,0.00010994,2]
[348210834,1736392252763,-167.21011473,0.00010994,2]
[348210835,1736392252772,-500.0,0.00010994,2]
[348210836,1736392252782,-550.29,0.00010994,2]
[348210837,1736392252793,-500.0,0.00010994,2]
[348210838,1736392252803,-500.0,0.00010994,2]
[348210839,1736392252813,-500.0,0.00010994,2]
[348210840,1736392252826,-500.0,0.00010994,2]
[348210841,1736392252837,-401.74177044,0.00010994,2]
[348210842,1736392252847,-500.0,0.00010994,2]
[348210843,1736392252857,-500.0,0.00010994,2]
[348210844,1736392252867,-512.28426904,0.00010994,2]
[348210845,1736392252877,-500.0,0.00010994,2]
[348210846,1736392252886,-500.0,0.00010994,2]
[348210847,1736392252896,-500.0,0.00010994,2]
[348210848,1736392252906,-500.0,0.00010994,2]
[348210849,1736392252915,-500.0,0.00010994,2]
[348210850,1736392252925,-500.0,0.00010994,2]
[348210851,1736392252936,-500.0,0.00010994,2]
[348210852,1736392252945,-500.0,0.00010994,2]
[348210853,1736392252956,-500.0,0.00010994,2]
[348210854,1736392252966,-500.0,0.00010994,2]
[348210855,1736392252976,-500.0,0.00010994,2]
[348210856,1736392252986,-500.0,0.00010994,2]
[348210857,1736392252995,-500.0,0.00010994,2]
[348210858,1736392253005,-500.0,0.00010994,2]
[348210859,1736392253015,-500.0,0.00010994,2]
[348210860,1736392253024,-500.0,0.00010994,2]
[348210861,1736392253034,-500.0,0.00010994,2]
[348210862,1736392253044,-500.0,0.00010994,2]
[348210863,1736392253054,-514.9440748,0.00010994,2]
[348210864,1736392253065,-554.56,0.00010994,2]
[348210865,1736392253075,-420.60164612,0.00010994,2]
[348210866,1736392253086,-500.0,0.00010994,2]
[348210867,1736392253096,-589.32074666,0.00010994,2]
[348210868,1736392253106,-443.33036048,0.00010994,2]
[348210869,1736392253117,-500.0,0.00010994,2]
[348210870,1736392253128,-500.0,0.00010994,2]
[348210871,1736392253138,-500.0,0.00010994,2]
[348210872,1736392253149,-1277.55,0.00010994,2]
[348210873,1736392253160,-500.0,0.00010994,2]
[348210874,1736392253170,-500.0,0.00010994,2]
[348210875,1736392253180,-500.0,0.00010994,2]
[348210876,1736392253190,-500.0,0.00010994,2]
[348210877,1736392253200,-500.0,0.00010994,2]
[348210878,1736392253210,-500.0,0.00010994,2]
[348210879,1736392253220,-500.0,0.00010994,2]
[348210880,1736392253230,-500.0,0.00010994,2]
[348210881,1736392253240,-500.0,0.00010994,2]
[348210882,1736392253251,-500.0,0.00010994,2]
[348210883,1736392253263,-500.0,0.00010994,2]
[348210884,1736392253274,-500.0,0.00010994,2]
[348210885,1736392253283,-500.0,0.00010994,2]
[348210886,1736392253293,-500.0,0.00010994,2]
[348210887,1736392253304,-152.95960313,0.00010995,2]
[348210888,1736392253314,-500.0,0.00010995,2]
[348210889,1736392253324,-500.0,0.00010995,2]
[348210890,1736392253337,-500.0,0.00010995,2]
[348210891,1736392253346,-500.0,0.00010995,2]
[348210892,1736392253356,-300.0,0.00011,4]
[348210893,1736392253366,-300.0,0.00011,5]
[348210894,1736392253376,-210.0,0.00011,5]
[348210895,1736392253386,-210.0,0.00011,6]
[348210896,1736392253396,-210.0,0.00011,4]
[348210897,1736392253406,-203.78,0.00011,7]
[348210898,1736392253416,-550.0,0.00011,2]
[348210899,1736392253427,-631.40660963,0.00011038,2]
[348210900,1736392253438,-155.285615,0.0001107,2]
[348210901,1736392253447,-2128.118,0.00011083,2]
[348210902,1736392253457,-175.597,0.00011083,2]
[348210903,1736392253467,-853.95,0.00011093,2]
[348210904,1736392253477,-1465.5,0.00011093,2]
[348210905,1736392253487,-817.85,0.00011093,2]
[348210906,1736392253497,-500.0,0.00011093,2]
[348210907,1736392253507,-500.0,0.00011093,2]
[348210908,1736392253516,-684.72,0.00011093,2]
[348210909,1736392253525,-807.44,0.00011093,2]
[348210910,1736392253535,-631.1,0.00011093,2]
[348210911,1736392253545,-705.09,0.00011093,2]
[348210912,1736392253554,-1011.08,0.00011093,2]
[348210913,1736392253564,-950.4,0.00011093,2]
[348210914,1736392253574,-1464.93,0.00011093,2]
[348210915,1736392253584,-500.0,0.00011093,2]
[348210916,1736392253595,-526.31,0.00011093,2]
[348210917,1736392253605,-500.0,0.00011093,2]
[348210918,1736392253614,-673.63,0.00011093,2]
[348210919,1736392253624,-500.0,0.00011093,2]
[348210920,1736392253633,-706.04,0.00011094,2]
[348210921,1736392253643,-909.19,0.00011094,2]
[348210922,1736392253653,-804.77,0.00011094,2]
[348210923,1736392253663,-500.0,0.00011094,2]
[348210924,1736392253829,-1296.61,0.00011094,2]
[348210925,1736392253839,-935.19,0.00011094,2]
[348210926,1736392253849,-2124.62,0.00011094,2]
[348210927,1736392253859,-500.0,0.00011094,2]
[348210928,1736392253869,-500.0,0.00011094,2]
[348210929,1736392253878,-500.0,0.00011095,2]
[348210930,1736392253888,-1150.38,0.00011095,2]
[348210931,1736392253897,-500.0,0.00011095,2]
[348210932,1736392253906,-514.41,0.00011095,2]
[348210933,1736392253916,-500.0,0.00011095,2]
[348210934,1736392253925,-500.0,0.00011095,2]
[348210935,1736392253935,-500.0,0.00011095,2]
[348210936,1736392253944,-994.18,0.00011095,2]
[348210937,1736392253954,-911.09,0.00011095,2]
[348210938,1736392253964,-500.0,0.00011095,2]
[348210939,1736392253974,-551.16,0.00011095,2]
[348210940,1736392253983,-500.0,0.00011095,2]
[348210941,1736392253992,-500.0,0.00011095,2]
[348210942,1736392254002,-811.36,0.00011095,2]
[348210943,1736392254011,-821.04,0.00011095,2]
[348210944,1736392254020,-2206.47,0.00011095,2]
[348210945,1736392254031,-631.40660963,0.00011141,2]
[348210946,1736392254040,-366.0,0.000112,2]
[348210947,1736392254050,-1000.0,0.000112,2]
[348210948,1736392254059,-231.0,0.000112,2]
[348210949,1736392254068,-150.0,0.00011214,2]
[348210950,1736392254079,-631.40660963,0.00011245,2]
[348210951,1736392254089,-484.66524803,0.00011267,2]
[348210952,1736392254099,-500.0,0.00011267,2]
[348210953,1736392254108,-591.72,0.00011267,2]
[348210954,1736392254118,-500.0,0.00011267,2]
[348210955,1736392254127,-500.0,0.00011267,2]
[348210956,1736392254137,-500.0,0.00011267,2]
[348210957,1736392254146,-1567.47,0.00011267,2]
[348210958,1736392254155,-500.0,0.00011267,2]
[348210959,1736392254164,-962.47,0.00011267,2]
[348210960,1736392254175,-500.0,0.00011267,2]
[348210961,1736392254185,-254.616793,0.00011267,2]
[348210962,1736392254195,-1699.35,0.00011267,2]
[348210963,1736392254204,-559.52,0.00011267,2]
[348210964,1736392254214,-500.0,0.00011267,2]
[348210965,1736392254223,-155.242054,0.00011267,2]
[348210966,1736392254232,-820.12,0.00011267,2]
[348210967,1736392254242,-1092.02,0.00011267,2]
[348210968,1736392254251,-538.11,0.00011267,2]
[348210969,1736392254261,-1072.11,0.00011267,2]
[348210970,1736392254274,-972.24,0.00011267,2]
[348210971,1736392254284,-612.74,0.00011267,2]
[348210972,1736392254293,-500.0,0.00011267,2]
[348210973,1736392254302,-860.95,0.00011267,2]
[348210974,1736392254312,-500.0,0.00011267,2]
[348210975,1736392254322,-500.0,0.00011267,2]
[348210976,1736392254331,-500.0,0.00011267,2]
[348210977,1736392254341,-500.0,0.00011267,2]
[348210978,1736392254350,-847.55,0.00011267,2]
[348210979,1736392254360,-1382.5,0.00011267,2]
[348210980,1736392254369,-1861.34,0.00011267,2]
[348210981,1736392254379,-757.64,0.00011267,2]
[348210982,1736392254388,-500.0,0.00011267,2]
[348210983,1736392254397,-1188.41,0.00011267,2]
[348210984,1736392254407,-500.0,0.00011267,2]
[348210985,1736392254417,-856.29,0.00011267,2]
[348210986,1736392254426,-500.0,0.00011267,2]
[348210987,1736392254436,-2771.17,0.00011267,2]
[348210988,1736392254445,-561.55,0.00011267,2]
[348210989,1736392254454,-500.0,0.00011268,2]
[348210990,1736392254464,-500.0,0.00011268,2]
[348210991,1736392254474,-500.0,0.00011268,2]
[348210992,1736392254484,-500.0,0.00011268,2]
[348210993,1736392254494,-500.0,0.00011268,2]
[348210994,1736392254504,-500.0,0.00011268,2]
[348210995,1736392254516,-500.0,0.00011268,2]
[348210996,1736392254526,-475.97508285,0.00011268,2]
[348210997,1736392254536,-500.0,0.00011268,2]
[348210998,1736392254546,-500.0,0.00011268,2]
[348210999,1736392254556,-500.0,0.00011268,2]
[348211000,1736392254565,-500.0,0.00011268,2]
[348211001,1736392254575,-500.0,0.00011268,2]
[348211002,1736392254584,-336.46927388,0.00011268,2]
[348211003,1736392254596,-500.0,0.00011268,2]
[348211004,1736392254605,-500.0,0.00011268,2]
[348211005,1736392254615,-510.71307239,0.00011268,2]
[348211006,1736392254625,-500.0,0.00011268,2]
[348211007,1736392254634,-500.0,0.00011268,2]
[348211008,1736392254644,-500.0,0.00011268,2]
[348211009,1736392254653,-500.0,0.00011268,2]
[348211010,1736392254662,-500.0,0.00011268,2]
[348211011,1736392254672,-554.56,0.00011268,2]
[348211012,1736392254681,-500.0,0.00011268,2]
[348211013,1736392254691,-386.56388337,0.00011268,2]
[348211014,1736392254701,-500.0,0.00011268,2]
[348211015,1736392254710,-237.11856806,0.00011268,2]
[348211016,1736392254719,-500.0,0.00011268,2]
[348211017,1736392254728,-500.0,0.00011268,2]
[348211018,1736392254738,-500.0,0.00011268,2]
[348211019,1736392254747,-500.0,0.00011268,2]
[348211020,1736392254756,-500.0,0.00011268,2]
[348211021,1736392254765,-500.0,0.00011268,2]
[348211022,1736392254774,-500.0,0.00011268,2]
[348211023,1736392254784,-500.0,0.00011268,2]
[348211024,1736392254793,-500.0,0.00011268,2]
[348211025,1736392254803,-369.31632932,0.00011268,2]
[348211026,1736392254812,-500.0,0.00011268,2]
[348211027,1736392254822,-500.0,0.00011268,2]
[348211028,1736392254831,-500.0,0.00011268,2]
[348211029,1736392254843,-500.0,0.00011269,2]
[348211030,1736392254851,-500.0,0.00011269,2]
[348211031,1736392254861,-500.0,0.00011269,2]
[348211032,1736392254870,-500.0,0.00011269,2]
[348211033,1736392254880,-150.0,0.00011344,2]
[348211034,1736392254890,-631.40660963,0.00011348,2]
[348211035,1736392254900,-1289.88756896,0.00011359,2]
[348211036,1736392254909,-853.95,0.00011367,2]
[348211037,1736392254918,-1465.5,0.00011367,2]
[348211038,1736392254928,-817.85,0.00011367,2]
[348211039,1736392254937,-500.0,0.00011367,2]
[348211040,1736392254948,-500.0,0.00011367,2]
[348211041,1736392254957,-684.72,0.00011367,2]
[348211042,1736392254967,-807.44,0.00011367,2]
[348211043,1736392254977,-631.1,0.00011367,2]
[348211044,1736392254986,-705.09,0.00011367,2]
[348211045,1736392254996,-1011.08,0.00011367,2]
[348211046,1736392255006,-950.4,0.00011367,2]
[348211047,1736392255015,-1464.93,0.00011367,2]
[348211048,1736392255025,-500.0,0.00011367,2]
[348211049,1736392255035,-500.0,0.00011367,2]
[348211050,1736392255045,-526.31,0.00011367,2]
[348211051,1736392255055,-673.63,0.00011367,2]
[348211052,1736392255064,-500.0,0.00011367,2]
[348211053,1736392255074,-706.04,0.00011368,2]
[348211054,1736392255083,-909.19,0.00011368,2]
[348211055,1736392255095,-804.77,0.00011368,2]
[348211056,1736392255104,-500.0,0.00011368,2]
[348211057,1736392255114,-1296.61,0.00011368,2]
[348211058,1736392255123,-935.19,0.00011368,2]
[348211059,1736392255133,-2124.62,0.00011368,2]
[348211060,1736392255143,-500.0,0.00011368,2]
[348211061,1736392255152,-514.51064927,0.00011368,2]
[348211062,1736392255162,-500.0,0.00011369,2]
[348211063,1736392255171,-1150.38,0.00011369,2]
[348211064,1736392255180,-500.0,0.00011369,2]
[348211065,1736392255191,-514.41,0.00011369,2]
[348211066,1736392255200,-500.0,0.00011369,2]
[348211067,1736392255209,-500.0,0.00011369,2]
[348211068,1736392255220,-575.22808274,0.00011369,2]
[348211069,1736392255229,-994.18,0.00011369,2]
[348211070,1736392255238,-911.09,0.00011369,2]
[348211071,1736392255247,-500.0,0.00011369,2]
[348211072,1736392255256,-551.16,0.00011369,2]
[348211073,1736392255269,-500.0,0.00011369,2]
[348211074,1736392255278,-500.0,0.00011369,2]
[348211075,1736392255287,-811.36,0.00011369,2]
[348211076,1736392255296,-821.04,0.00011369,2]
[348211077,1736392255306,-2206.47,0.00011369,2]
[348211078,1736392255315,-240.24126291,0.00011392,2]
[348211079,1736392255324,-150.0,0.00011438,2]
[348211080,1736392255333,-398.06108066,0.00011441,2]
[348211081,1736392255345,-631.40660963,0.00011452,2]
[348211082,1736392255354,-175.9175134,0.00011474,2]
[348211083,1736392255364,-2751.0,0.00011507,2]
[348211084,1736392255373,-500.0,0.00011541,2]
[348211085,1736392255383,-591.72,0.00011541,2]
[348211086,1736392255392,-500.0,0.00011541,2]
[348211087,1736392255402,-500.0,0.00011541,2]
[348211088,1736392255411,-500.0,0.00011541,2]
[348211089,1736392255420,-1567.47,0.00011541,2]
[348211090,1736392255430,-500.0,0.00011541,2]
[348211091,1736392255439,-962.47,0.00011541,2]
[348211092,1736392255448,-500.0,0.00011541,2]
[348211093,1736392255458,-254.616793,0.00011541,2]
[348211094,1736392255467,-1699.35,0.00011541,2]
[348211095,1736392255476,-559.52,0.00011541,2]
[348211096,1736392255486,-500.0,0.00011541,2]
[348211097,1736392255495,-155.242054,0.00011541,2]
[348211098,1736392255505,-820.12,0.00011541,2]
[348211099,1736392255514,-1092.02,0.00011541,2]
[348211100,1736392255523,-538.11,0.00011541,2]
[348211101,1736392255532,-1072.11,0.00011541,2]
[348211102,1736392255541,-972.24,0.00011541,2]
[348211103,1736392255551,-612.74,0.00011541,2]